bitfinex-derivatives/quotes_BTCF0:USTF0_20250718
["timestamp","ask_amount","ask_price","bid_price","bid_amount"]
[1752815720919,0.77571994,120660.0,120650.0,0.62599332]
[1752815721221,0.94133574,120660.0,120650.0,0.62599332]
[1752815721420,0.77571994,120660.0,120650.0,0.62599332]
[1752815721617,0.12427994,120660.0,120650.0,0.62599332]
[1752815721915,0.12427994,120660.0,120650.0,0.98679332]
[1752815722116,0.3608,120680.0,120670.0,0.4159079]
[1752815722422,0.5677746,120690.0,120680.0,0.3330983]
[1752815722624,0.5263805,120690.0,120680.0,0.62321222]
[1752815722823,1.13538178,120690.0,120680.0,0.62321222]
[1752815723024,1.30095638,120690.0,120680.0,0.62321222]
[1752815723220,1.30095638,120690.0,120680.0,0.3330983]
[1752815723625,1.30187638,120690.0,120680.0,0.3330983]
[1752815724926,1.30183638,120690.0,120680.0,0.3330983]
[1752815725525,1.30183638,120690.0,120680.0,0.3340983]
[1752815725721,0.64995638,120690.0,120680.0,0.3340983]
[1752815725925,0.5263615,120700.0,120690.0,0.2305447]
[1752815726219,1.13632418,120700.0,120690.0,0.3330847]
[1752815726420,1.30188518,120700.0,120690.0,0.3330847]
[1752815727421,0.1655747,120690.0,120680.0,0.10454]
[1752815727620,1.1767747,120690.0,120680.0,0.2534584]
[1752815727823,1.3004546,120690.0,120680.0,0.2534584]
[1752815728021,0.4844799,120690.0,120680.0,0.62521232]
[1752815728223,1.1347999,120690.0,120680.0,0.62421232]
[1752815728423,0.6500545,120690.0,120680.0,0.62421232]
[1752815728723,1.3003745,120690.0,120680.0,0.62421232]
[1752815729126,1.3003745,120690.0,120680.0,0.3340984]
[1752815729526,0.6500545,120690.0,120680.0,0.3340984]
[1752815730118,1.3001745,120690.0,120680.0,0.3340984]
[1752815730424,0.9393745,120690.0,120680.0,0.3340984]
[1752815730624,0.9393745,120690.0,120680.0,0.3330984]
[1752815730922,0.9393745,120690.0,120680.0,0.62321232]
[1752815731321,1.3001745,120690.0,120680.0,0.62321232]
[1752815731523,1.3001745,120690.0,120680.0,0.3330984]
[1752815732117,0.9393745,120690.0,120680.0,0.3330984]
[1752815732326,0.2892545,120690.0,120680.0,0.3330984]
[1752815732522,1.2998545,120690.0,120680.0,0.3330984]
[1752815733627,1.2998545,120690.0,120680.0,0.62321232]
[1752815734029,1.2998545,120690.0,120680.0,0.3330984]
[1752815735532,1.2998545,120690.0,120680.0,0.62321232]
[1752815735731,1.2996545,120690.0,120680.0,0.62321232]
[1752815735933,0.9388545,120690.0,120680.0,0.62321232]
[1752815736132,1.2996545,120690.0,120680.0,0.62321232]
[1752815736534,0.6500545,120690.0,120680.0,0.62321232]
[1752815736735,1.2994545,120690.0,120680.0,0.62321232]
[1752815736936,0.6500545,120690.0,120680.0,0.62321232]
[1752815737135,1.2994145,120690.0,120680.0,0.3330984]
[1752815737934,1.2994145,120690.0,120680.0,0.3057984]
[1752815738134,0.6500545,120690.0,120680.0,0.3095584]
[1752815738437,1.2994145,120690.0,120680.0,0.3095584]
[1752815739232,0.165602,120670.0,120660.0,0.10254]
[1752815739436,1.82643592,120670.0,120660.0,0.08587]
[1752815739640,1.95085176,120670.0,120660.0,0.2514857]
[1752815739841,1.66073784,120670.0,120660.0,0.08587]
[1752815740041,1.66073784,120670.0,120660.0,0.2514856]
[1752815740536,1.01161784,120670.0,120660.0,0.2514856]
[1752815740737,1.66061784,120670.0,120660.0,0.2514856]
[1752815741140,0.1656156,120660.0,120650.0,0.2681646]
[1752815741438,1.30036296,120660.0,120650.0,0.2681646]
[1752815741840,0.65140296,120660.0,120650.0,0.2681646]
[1752815742047,1.30036296,120660.0,120650.0,0.2681646]
[1752815742948,1.30036296,120660.0,120650.0,0.2931546]
[1752815743548,1.30036296,120660.0,120650.0,0.2951546]
[1752815744245,1.30036296,120660.0,120650.0,0.3328246]
[1752815744548,1.30020296,120660.0,120650.0,0.65023852]
[1752815744742,0.65140296,120660.0,120650.0,0.3601246]
[1752815745149,1.30008296,120660.0,120650.0,0.3601246]
[1752815745851,0.65140296,120660.0,120650.0,0.3601246]
[1752815746149,1.30000296,120660.0,120650.0,0.3601246]
[1752815746651,0.65140296,120660.0,120650.0,0.3037246]
[1752815746952,1.30000296,120660.0,120650.0,0.3037246]
[1752815747251,1.30000296,120660.0,120650.0,0.2951546]
[1752815747544,0.94151688,120660.0,120650.0,0.02699]
[1752815747745,1.75571688,120660.0,120650.0,0.02699]
[1752815748748,1.10727688,120660.0,120650.0,0.02699]
[1752815749053,1.75563688,120660.0,120650.0,0.02699]
[1752815749252,0.1656432,120640.0,120630.0,0.08587]
[1752815749453,1.5355232,120640.0,120630.0,0.2761569]
[1752815749649,1.65935188,120640.0,120630.0,0.3052569]
[1752815749952,1.65931188,120640.0,120630.0,0.3319769]
[1752815750153,0.48462868,120640.0,120630.0,0.62209082]
[1752815750453,0.5264432,120640.0,120630.0,0.62209082]
[1752815750652,1.1746432,120640.0,120630.0,0.62509082]
[1752815751853,1.1746432,120640.0,120630.0,0.3369769]
[1752815752249,1.2991569,120640.0,120630.0,0.1446]
[1752815752451,1.46782282,120640.0,120630.0,0.005]
[1752815752652,1.30203082,120640.0,120630.0,0.005]
[1752815752954,1.6599169,120640.0,120630.0,0.331397]
[1752815753351,1.6599169,120640.0,120630.0,0.277807]
[1752815753656,1.6598769,120640.0,120630.0,0.11215]
[1752815753956,1.6598769,120640.0,120630.0,0.277807]
[1752815755056,1.0119169,120640.0,120630.0,0.277807]
[1752815755258,1.6597569,120640.0,120630.0,0.331397]
[1752815757357,1.6596369,120640.0,120630.0,0.08752]
[1752815757757,1.6596369,120640.0,120630.0,0.005]
[1752815757958,1.6596369,120640.0,120630.0,0.170657]
[1752815758158,1.6596369,120640.0,120630.0,0.005]
[1752815758354,1.6596369,120640.0,120630.0,0.210847]
[1752815758554,1.6596369,120640.0,120630.0,0.253177]
[1752815758755,1.6596369,120640.0,120630.0,0.08752]
[1752815759057,1.6595169,120640.0,120630.0,0.005]
[1752815759258,1.0119169,120640.0,120630.0,0.005]
[1752815759460,1.6595169,120640.0,120630.0,0.005]
[1752815759654,1.0119169,120640.0,120630.0,0.005]
[1752815759957,1.6594769,120640.0,120630.0,0.005]
[1752815760360,1.0119169,120640.0,120630.0,0.005]
[1752815760555,0.8462737,120640.0,120630.0,0.62151102]
[1752815760853,1.659397,120640.0,120630.0,0.62151102]
[1752815761262,0.8462737,120640.0,120630.0,0.3313971]
[1752815761456,1.1875257,120660.0,120650.0,0.02687]
[1752815761457,0.6092268,120660.0,120650.0,0.02687]
[1752815761762,1.38177241,120660.0,120650.0,0.3263696]
[1752815761961,1.38173241,120660.0,120650.0,0.3263696]
[1752815762560,0.73433241,120660.0,120650.0,0.61648352]
[1752815762862,1.38169241,120660.0,120650.0,0.61648352]
[1752815763162,1.02089241,120660.0,120650.0,0.61648352]
[1752815763359,1.34028591,120660.0,120650.0,0.61748352]
[1752815764262,1.34020591,120660.0,120650.0,0.61748352]
[1752815764557,0.69292591,120660.0,120650.0,0.61748352]
[1752815764763,1.34016591,120660.0,120650.0,0.61748352]
[1752815764964,1.34016591,120660.0,120650.0,0.16174]
[1752815765262,1.34012591,120660.0,120650.0,0.10815]
[1752815765457,1.34012591,120660.0,120650.0,0.08352]
[1752815765857,0.69292591,120660.0,120650.0,0.001]
[1752815766062,1.34004591,120660.0,120650.0,0.001]
[1752815766456,1.63015983,120660.0,120650.0,0.001]
[1752815767061,1.14879983,120660.0,120650.0,0.001]
[1752815767262,1.79583983,120660.0,120650.0,0.001]
[1752815767667,1.63007983,120660.0,120650.0,0.001]
[1752815767866,0.98303983,120660.0,120650.0,0.001]
[1752815768062,0.69292591,120660.0,120650.0,0.001]
[1752815768267,0.69292591,120660.0,120650.0,0.2656195]
[1752815768467,1.33988591,120660.0,120650.0,0.2737795]
[1752815768766,1.33984591,120660.0,120650.0,0.2737795]
[1752815775774,1.33932591,120660.0,120650.0,0.2737795]
[1752815776168,0.69292591,120660.0,120650.0,0.10815]
[1752815776471,1.33928591,120660.0,120650.0,0.10815]
[1752815778570,1.33928591,120660.0,120650.0,0.09999]
[1752815785680,1.33848591,120660.0,120650.0,0.09999]
[1752815786174,0.9402493,120660.0,120650.0,0.001]
[1752815786381,0.1656432,120640.0,120630.0,0.34568339]
[1752815786677,0.1656569,120630.0,120620.0,0.09843415]
[1752815786881,0.5264569,120630.0,120620.0,0.08176415]
[1752815787081,0.65057224,120630.0,120620.0,0.08176415]
[1752815787880,0.65057224,120630.0,120620.0,0.51142824]
[1752815788178,0.65057224,120630.0,120620.0,0.26410485]
[1752815788377,0.65057224,120630.0,120620.0,0.27513485]
[1752815788882,0.65057224,120630.0,120620.0,0.30362485]
[1752815789081,1.29589224,120630.0,120620.0,0.33081485]
[1752815789483,1.36171969,120630.0,120620.0,0.33081485]
[1752815790582,1.36163969,120630.0,120620.0,0.33081485]
[1752815790978,1.36147969,120630.0,120620.0,0.10946415]
[1752815791180,1.36147969,120630.0,120620.0,0.10143415]
[1752815791681,0.71639969,120630.0,120620.0,0.26710475]
[1752815791978,1.36139969,120630.0,120620.0,0.30762475]
[1752815792179,1.36139969,120630.0,120620.0,0.33481475]
[1752815792785,0.71639969,120630.0,120620.0,0.33481475]
[1752815793085,1.36139969,120630.0,120620.0,0.33481475]
[1752815793681,0.71639969,120630.0,120620.0,0.33481475]
[1752815793886,0.71639969,120630.0,120620.0,0.62475787]
[1752815794081,0.48491534,120630.0,120620.0,0.62475787]
[1752815794288,0.2070624,120640.0,120630.0,0.3110567]
[1752815794586,1.33697027,120640.0,120630.0,0.61766982]
[1752815794781,0.3608,120650.0,120640.0,0.275823]
[1752815794987,1.253956,120660.0,120650.0,0.3276993]
[1752815795489,1.37772391,120660.0,120650.0,0.61764242]
[1752815797392,0.48456791,120660.0,120650.0,0.61764242]
[1752815797592,1.29482351,120660.0,120650.0,0.61764242]
[1752815797890,1.12920791,120660.0,120650.0,0.61764242]
[1752815798092,1.29482351,120660.0,120650.0,0.61764242]
[1752815798293,0.76840791,120660.0,120650.0,0.61764242]
[1752815798487,0.93402351,120660.0,120650.0,0.61764242]
[1752815798786,0.12376791,120660.0,120650.0,1.43414554]
[1752815798992,1.7555508,120680.0,120670.0,0.2459818]
[1752815799195,2.3999908,120680.0,120670.0,0.61761492]
[1752815799394,2.52352492,120680.0,120670.0,0.61761492]
[1752815800289,2.52352492,120680.0,120670.0,0.3276718]
[1752815801797,2.52328492,120680.0,120670.0,0.61761492]
[1752815802200,2.52328492,120680.0,120670.0,0.3276718]
[1752815802396,1.29412692,120680.0,120670.0,0.61761492]
[1752815802897,1.29404692,120680.0,120670.0,0.61761492]
[1752815803199,0.48433412,120680.0,120670.0,0.61761492]
[1752815803394,0.12353412,120680.0,120670.0,0.6884718]
[1752815803699,0.76757412,120680.0,120670.0,0.3276718]
[1752815803897,0.93316222,120680.0,120670.0,0.61761492]
[1752815804097,0.76757412,120680.0,120670.0,0.61761492]
[1752815804292,0.76757412,120680.0,120670.0,0.3276718]
[1752815804597,0.76757412,120680.0,120670.0,0.61761492]
[1752815804598,0.93316222,120680.0,120670.0,0.61761492]
[1752815805401,0.76757412,120680.0,120670.0,0.61961492]
[1752815806603,0.93316222,120680.0,120670.0,0.61961492]
[1752815806908,0.64992222,120680.0,120670.0,0.61961492]
[1752815807708,1.29392222,120680.0,120670.0,0.62261492]
[1752815807908,0.64992222,120680.0,120670.0,0.62261492]
[1752815808299,0.48433412,120680.0,120670.0,0.62261492]
[1752815808503,0.76749412,120680.0,120670.0,0.62261492]
[1752815808806,0.93308222,120680.0,120670.0,0.3326718]
[1752815808997,0.93308222,120680.0,120670.0,0.62261492]
[1752815809201,0.64992222,120680.0,120670.0,0.62261492]
[1752815809401,1.29388222,120680.0,120670.0,0.62261492]
[1752815810701,1.29388222,120680.0,120670.0,0.3326718]
[1752815810906,1.29388222,120680.0,120670.0,0.62261492]
[1752815811108,0.93308222,120680.0,120670.0,0.62261492]
[1752815811307,0.76749412,120680.0,120670.0,0.62261492]
[1752815812007,0.93308232,120680.0,120670.0,0.62261492]
[1752815813007,0.93304232,120680.0,120670.0,0.62261492]
[1752815813209,0.28912232,120680.0,120670.0,0.62261492]
[1752815813406,0.76745412,120680.0,120670.0,0.62261492]
[1752815813611,0.12353412,120680.0,120670.0,0.62261492]
[1752815813807,0.5263759,120690.0,120680.0,0.3297882]
[1752815814013,1.1702559,120690.0,120680.0,0.3297882]
[1752815814213,1.29398249,120690.0,120680.0,0.61973132]
[1752815814809,1.29398249,120690.0,120680.0,0.62073132]
[1752815815016,0.48452659,120690.0,120680.0,0.57790685]
[1752815815314,0.76760659,120690.0,120680.0,0.93870685]
[1752815816009,0.76756659,120690.0,120680.0,1.1858255]
[1752815816314,0.76756659,120690.0,120680.0,0.8250255]
[1752815816516,1.12836659,120690.0,120680.0,0.8260255]
[1752815816709,0.76756659,120690.0,120680.0,0.8260255]
[1752815817013,0.76752659,120690.0,120680.0,0.8260255]
[1752815817514,0.6438,120690.0,120680.0,0.8260255]
[1752815817814,0.2483552,120700.0,120690.0,0.2318144]
[1752815818013,0.8921552,120700.0,120690.0,0.57689305]
[1752815818213,0.97543299,120700.0,120690.0,0.57689305]
[1752815818514,0.69243299,120700.0,120690.0,0.57689305]
[1752815818710,0.5263567,120710.0,120700.0,0.3297607]
[1752815818914,0.5263567,120710.0,120700.0,0.57687935]
[1752815819115,1.29478749,120710.0,120700.0,0.57687935]
[1752815819513,0.65102749,120710.0,120700.0,0.08097]
[1752815819713,0.65102749,120710.0,120650.0,0.08097]
[1752815819714,0.774763,120690.0,120650.0,0.08097]
[1752815820018,0.1656431,120640.0,120630.0,0.2636168]
[1752815820316,0.3608,120650.0,120640.0,0.285868]
[1752815820515,0.5264202,120660.0,120650.0,0.08097]
[1752815820812,0.1656569,120630.0,120620.0,0.24670975]
[1752815821018,1.1701769,120630.0,120620.0,0.24671475]
[1752815821219,0.65106925,120630.0,120620.0,0.08104415]
[1752815821420,0.65106925,120630.0,120620.0,0.24671475]
[1752815821617,1.29478925,120630.0,120620.0,0.24671475]
[1752815821813,0.29026915,120630.0,120620.0,0.61991764]
[1752815822012,0.93394915,120630.0,120620.0,0.61991764]
[1752815822513,1.29474915,120630.0,120620.0,0.32994475]
[1752815822714,1.29474915,120630.0,120620.0,0.61991764]
[1752815822910,0.65106915,120630.0,120620.0,0.32994475]
[1752815823116,0.65306915,120630.0,120620.0,0.27243475]
[1752815823318,0.94304204,120630.0,120620.0,7.415e-05]
[1752815823518,1.58476204,120630.0,120620.0,7.415e-05]
[1752815823716,1.58576204,120630.0,120620.0,7.415e-05]
[1752815824319,1.58676204,120630.0,120620.0,7.415e-05]
[1752815825719,1.58576204,120630.0,120620.0,7.415e-05]
[1752815825922,1.58876204,120630.0,120620.0,7.415e-05]
[1752815826418,1.29878915,120630.0,120620.0,7.415e-05]
[1752815826717,1.29882915,120630.0,120620.0,7.415e-05]
[1752815826919,0.65506915,120630.0,120620.0,0.16574465]
[1752815827119,1.29882915,120630.0,120620.0,7.415e-05]
[1752815827816,1.58880204,120630.0,120620.0,7.415e-05]
[1752815828921,1.29882915,120630.0,120620.0,7.415e-05]
[1752815829121,1.58884204,120630.0,120620.0,7.415e-05]
[1752815829915,1.58884204,120630.0,120600.0,0.2655236]
[1752815829916,0.1656843,120610.0,120600.0,0.08097]
[1752815830122,0.165698,120600.0,120590.0,0.2636718]
[1752815830323,0.526498,120600.0,120590.0,0.2466818]
[1752815830623,0.65166356,120600.0,120590.0,0.2466818]
[1752815830825,0.1657118,120590.0,120580.0,0.3552637]
[1752815831023,1.1702318,120590.0,120580.0,0.3552637]
[1752815831224,0.65154977,120590.0,120580.0,0.3552637]
[1752815831425,1.29526977,120590.0,120580.0,0.4127737]
[1752815831724,1.29526977,120590.0,120580.0,0.3713429]
[1752815831925,1.29526977,120590.0,120580.0,0.3299147]
[1752815832727,1.29526977,120590.0,120580.0,0.2466955]
[1752815833021,1.29526977,120590.0,120580.0,0.08097]
[1752815833822,0.1657255,120580.0,120570.0,0.09796]
[1752815834028,1.1702455,120580.0,120570.0,0.2636992]
[1752815834221,1.29456266,120580.0,120570.0,0.2636992]
[1752815834626,1.29456266,120580.0,120570.0,0.09796]
[1752815834825,1.29456266,120580.0,120570.0,0.2636992]
[1752815835221,1.29456266,120580.0,120570.0,0.2646992]
[1752815835731,1.29456266,120580.0,120570.0,0.2656992]
[1752815836526,1.29464266,120580.0,120570.0,0.2656992]
[1752815836726,1.29464266,120580.0,120570.0,0.2658111]
[1752815836927,0.65084266,120580.0,120570.0,0.2658111]
[1752815837126,1.29460266,120580.0,120570.0,0.2658111]
[1752815838330,0.65084266,120580.0,120570.0,0.0830819]
[1752815838525,1.29456266,120580.0,120570.0,0.2488212]
[1752815838927,1.29456266,120580.0,120570.0,0.0830819]
[1752815839432,1.29452266,120580.0,120570.0,0.0021119]
[1752815839728,0.48511716,120580.0,120570.0,0.61792399]
[1752815840533,0.12431716,120580.0,120570.0,0.61792399]
[1752815840735,0.76803716,120580.0,120570.0,0.61792399]
[1752815841234,0.76803716,120580.0,120570.0,0.3279511]
[1752815841533,0.76803716,120580.0,120570.0,0.61792399]
[1752815842628,0.12431716,120580.0,120570.0,0.61792399]
[1752815842934,0.76799716,120580.0,120570.0,0.61792399]
[1752815843232,0.76795716,120580.0,120570.0,0.61792399]
[1752815845525,0.12431716,120580.0,120570.0,0.61792399]
[1752815845834,0.76787716,120580.0,120570.0,0.61792399]
[1752815846636,0.76787716,120580.0,120570.0,0.3279511]
[1752815846835,0.76787716,120580.0,120570.0,0.61792399]
[1752815847135,0.29004256,120580.0,120570.0,0.61792399]
[1752815847336,0.93360256,120580.0,120570.0,0.61792399]
[1752815847834,0.65084256,120580.0,120570.0,0.1057519]
[1752815848027,0.65084256,120580.0,120570.0,0.0814919]
[1752815848226,1.29432256,120580.0,120570.0,0.2472311]
[1752815848427,0.65084256,120580.0,120570.0,0.2633911]
[1752815848626,1.29432256,120580.0,120570.0,0.2714911]
[1752815849036,0.65084256,120580.0,120570.0,0.2714911]
[1752815849237,1.29428256,120580.0,120570.0,0.61792399]
[1752815849435,0.93348256,120580.0,120570.0,0.61792399]
[1752815850135,0.93348256,120580.0,120570.0,0.3279511]
[1752815850336,0.93348256,120580.0,120570.0,0.61792399]
[1752815851435,1.29428256,120580.0,120570.0,0.61792399]
[1752815852133,1.29428256,120580.0,120570.0,0.0976519]
[1752815852337,1.29420256,120580.0,120570.0,0.2472312]
[1752815852739,0.65084256,120580.0,120570.0,0.56146409]
[1752815852940,1.29420256,120580.0,120570.0,0.61792409]
[1752815854241,0.65084256,120580.0,120570.0,0.61792409]
[1752815854441,1.29416256,120580.0,120570.0,0.61792409]
[1752815854845,1.29416256,120580.0,120570.0,0.3279512]
[1752815855141,1.29416256,120580.0,120570.0,0.61792409]
[1752815855541,1.29416256,120580.0,120570.0,0.3279512]
[1752815855845,0.65084256,120580.0,120570.0,0.61792409]
[1752815856144,1.29416256,120580.0,120570.0,0.3279512]
[1752815856438,1.29416256,120580.0,120570.0,0.1622119]
[1752815856734,1.29408256,120580.0,120570.0,0.2472311]
[1752815856940,0.65084256,120580.0,120570.0,0.58962399]
[1752815857140,1.29404256,120580.0,120570.0,0.58962399]
[1752815859141,1.29404256,120580.0,120570.0,0.2996511]
[1752815859340,0.93324256,120580.0,120570.0,0.2996511]
[1752815859641,1.29404256,120580.0,120570.0,0.2996511]
[1752815860543,0.65084256,120580.0,120570.0,0.1057519]
[1752815860841,1.29392256,120580.0,120570.0,0.0021119]
[1752815861041,0.65084256,120580.0,120570.0,0.0021119]
[1752815861241,1.29392256,120580.0,120570.0,0.1678511]
[1752815861442,1.29388256,120580.0,120570.0,0.1678511]
[1752815861638,1.29388256,120580.0,120570.0,0.0021119]
[1752815864244,0.65084256,120580.0,120570.0,0.0021119]
[1752815864444,1.29380256,120580.0,120570.0,0.0021119]
[1752815865748,1.29380256,120580.0,120570.0,0.2472311]
[1752815865948,0.65084256,120580.0,120570.0,0.2472311]
[1752815866147,1.29372256,120580.0,120570.0,0.2472311]
[1752815867447,1.29372256,120580.0,120570.0,0.0814919]
[1752815868545,1.29372256,120580.0,120570.0,0.0021119]
[1752815872453,1.29372256,120580.0,120570.0,0.1678511]
[1752815872749,1.29372256,120580.0,120570.0,0.2464311]
[1752815872950,1.29372256,120580.0,120570.0,0.0806919]
[1752815873648,0.0414355,120570.0,120540.0,0.01601]
[1752815873843,0.1657942,120530.0,120520.0,0.00013756]
[1752815874048,1.1350303,120530.0,120520.0,6e-08]
[1752815874349,2.69585628,120530.0,120520.0,6e-08]
[1752815875051,0.1658492,120490.0,120480.0,0.07858]
[1752815875349,0.92924624,120490.0,120480.0,0.174143]
[1752815875555,0.12471664,120490.0,120480.0,0.61407412]
[1752815875850,0.6095491,120510.0,120500.0,0.3233755]
[1752815876050,0.5680913,120510.0,120500.0,0.61404662]
[1752815876251,0.12471664,120510.0,120500.0,0.61404662]
[1752815876451,0.4022514,120530.0,120510.0,0.07858]
[1752815876452,0.5265985,120530.0,120510.0,0.07858]
[1752815876653,0.2072483,120530.0,120520.0,0.55105532]
[1752815876849,0.33214151,120530.0,120520.0,0.55105532]
[1752815877050,0.12489321,120530.0,120520.0,0.55105532]
[1752815877355,0.93332741,120530.0,120520.0,0.55105532]
[1752815877547,0.76753321,120530.0,120520.0,0.55105532]
[1752815877743,0.12489321,120530.0,120520.0,0.96699932]
[1752815877950,0.1657529,120560.0,120550.0,0.3272113]
[1752815878145,0.64264,120560.0,120550.0,0.61788242]
[1752815878351,1.7152376,120580.0,120570.0,0.2443192]
[1752815878648,2.44141625,120580.0,120570.0,0.55100032]
[1752815878853,1.79877625,120580.0,120570.0,0.55100032]
[1752815879056,1.43797625,120580.0,120570.0,0.55100032]
[1752815879256,1.86361881,120580.0,120570.0,0.07858]
[1752815879457,2.50625881,120580.0,120570.0,0.2443191]
[1752815880149,2.50625881,120580.0,120570.0,0.07858]
[1752815880344,0.1657392,120570.0,120560.0,0.07858]
[1752815880552,0.5265392,120570.0,120560.0,0.2443329]
[1752815880848,0.165753,120560.0,120550.0,0.2443381]
[1752815881053,1.169153,120560.0,120550.0,0.2443381]
[1752815881256,1.29296896,120560.0,120550.0,0.2443381]
[1752815881449,1.12717596,120560.0,120550.0,0.55101922]
[1752815881651,0.12381596,120560.0,120550.0,0.55101922]
[1752815881950,0.65036896,120560.0,120550.0,0.55101922]
[1752815882155,1.29288896,120560.0,120550.0,0.55101922]
[1752815882654,0.93308896,120560.0,120550.0,0.55101922]
[1752815882854,1.29388896,120560.0,120550.0,0.55101922]
[1752815883055,1.29388896,120560.0,120550.0,0.55201922]
[1752815883254,1.29388896,120560.0,120550.0,0.2613481]
[1752815883455,1.29388896,120560.0,120550.0,0.55201922]
[1752815884457,1.29388896,120560.0,120550.0,0.38626112]
[1752815884759,0.65136896,120560.0,120550.0,0.07858]
[1752815884953,1.29380896,120560.0,120550.0,0.07858]
[1752815885150,0.1657804,120540.0,120530.0,0.38526112]
[1752815885353,1.1690204,120540.0,120530.0,0.55105522]
[1752815885955,0.5265804,120540.0,120530.0,0.55105522]
[1752815886254,0.5265804,120540.0,120530.0,0.2603841]
[1752815886460,1.1689404,120540.0,120530.0,0.55505522]
[1752815887660,1.1689404,120540.0,120530.0,0.55305522]
[1752815887861,1.1689404,120540.0,120530.0,0.55405522]
[1752815888162,1.1689404,120540.0,120530.0,0.55205522]
[1752815888557,1.1689404,120540.0,120530.0,0.2613841]
[1752815888764,1.1689404,120540.0,120530.0,0.55205522]
[1752815889459,1.1689404,120540.0,120530.0,0.2613841]
[1752815889664,1.29285859,120540.0,120530.0,0.2613842]
[1752815890563,0.65057859,120540.0,120530.0,0.55205532]
[1752815890964,1.29285859,120540.0,120530.0,0.55205532]
[1752815891664,0.48479819,120540.0,120530.0,0.55205532]
[1752815891865,1.29281869,120540.0,120530.0,0.2613842]
[1752815892158,0.65057869,120540.0,120530.0,0.55205532]
[1752815892464,1.29281869,120540.0,120530.0,0.55205532]
[1752815892665,1.29281869,120540.0,120530.0,0.2613842]
[1752815892964,0.48479819,120540.0,120530.0,0.2613842]
[1752815893166,1.29281869,120540.0,120530.0,0.2613842]
[1752815893366,1.29281869,120540.0,120530.0,0.55205532]
[1752815893561,0.65057869,120540.0,120530.0,0.55205532]
[1752815894066,1.29277869,120540.0,120530.0,0.55205532]
[1752815894466,1.29277869,120540.0,120530.0,0.2613842]
[1752815894770,1.29277869,120540.0,120530.0,0.61500532]
[1752815895167,1.29277869,120540.0,120530.0,0.3243342]
[1752815895668,1.29273869,120540.0,120530.0,0.2613841]
[1752815896166,1.29273869,120540.0,120530.0,0.2696641]
[1752815896769,0.65057869,120540.0,120530.0,0.61500522]
[1752815896963,1.29269869,120540.0,120530.0,0.3243341]
[1752815897268,0.76611819,120540.0,120530.0,0.61500522]
[1752815897964,0.3608,120560.0,120550.0,0.1657666]
[1752815898170,1.1686345,120560.0,120550.0,0.61397772]
[1752815898372,0.48588461,120560.0,120550.0,0.61397772]
[1752815898566,1.12796461,120560.0,120550.0,0.61397772]
[1752815898967,1.12896461,120560.0,120550.0,0.61397772]
[1752815899163,0.48688461,120560.0,120550.0,0.61397772]
[1752815899470,1.13096461,120560.0,120550.0,0.61397772]
[1752815899670,1.29671751,120560.0,120550.0,0.61397772]
[1752815899968,1.29571751,120560.0,120550.0,0.61397772]
[1752815900162,0.65363751,120560.0,120550.0,0.2686366]
[1752815900563,1.12888461,120560.0,120550.0,0.61181772]
[1752815901572,1.29463761,120560.0,120550.0,0.61181772]
[1752815901772,1.29363761,120560.0,120550.0,0.61181772]
[1752815902273,1.29463761,120560.0,120550.0,0.61181772]
[1752815903171,1.29463761,120560.0,120550.0,0.3211466]
[1752815903365,1.29463761,120560.0,120550.0,0.61181772]
[1752815903972,1.29463761,120560.0,120550.0,0.3211466]
[1752815904473,0.65263761,120560.0,120550.0,0.07858]
[1752815904678,0.1657666,120550.0,120540.0,0.2452904]
[1752815904865,0.5265666,120550.0,120540.0,0.2452904]
[1752815905069,1.29251652,120550.0,120540.0,0.2702104]
[1752815905373,0.93171652,120550.0,120540.0,0.2702104]
[1752815906477,0.12410992,120550.0,120540.0,0.3227204]
[1752815906677,0.12410992,120550.0,120540.0,0.61439152]
[1752815906977,0.76590992,120550.0,120540.0,0.61439152]
[1752815907574,0.76590992,120550.0,120540.0,0.61339152]
[1752815907878,0.28987662,120550.0,120540.0,0.3227204]
[1752815908177,0.93263662,120550.0,120540.0,0.3227204]
[1752815908380,0.93263662,120550.0,120540.0,0.3237204]
[1752815908678,0.93163662,120550.0,120540.0,0.61439152]
[1752815909278,0.93263662,120550.0,120540.0,0.3237204]
[1752815909579,1.29343662,120550.0,120540.0,0.2462904]
[1752815909779,1.29339662,120550.0,120540.0,0.2452904]
[1752815909981,1.29339662,120550.0,120540.0,0.2462904]
[1752815910576,1.29339662,120550.0,120540.0,0.1657804]
[1752815910778,0.1657802,120540.0,120530.0,0.3447691]
[1752815910975,0.5265802,120540.0,120530.0,0.3447691]
[1752815911281,0.1657802,120540.0,120530.0,0.3447691]
[1752815911781,0.1657802,120540.0,120530.0,0.63544022]
[1752815912183,0.1657802,120540.0,120530.0,0.3531091]
[1752815912482,0.2894304,120540.0,120530.0,0.3531091]
[1752815912671,0.9311104,120540.0,120530.0,0.3531091]
[1752815913085,0.9311104,120540.0,120530.0,0.3541091]
[1752815913285,1.2919104,120540.0,120530.0,0.64478022]
[1752815913472,0.9311104,120540.0,120530.0,0.64478022]
[1752815913882,0.2894304,120540.0,120530.0,0.64478022]
[1752815914086,1.2918304,120540.0,120530.0,0.3126621]
[1752815915581,1.2918304,120540.0,120530.0,0.2877421]
[1752815915783,0.6502304,120540.0,120530.0,0.2877421]
[1752815915984,1.2918304,120540.0,120530.0,0.2877421]
[1752815916785,1.2917504,120540.0,120530.0,0.2877421]
[1752815917285,1.2917504,120540.0,120530.0,0.3126621]
[1752815917685,0.9309504,120540.0,120530.0,0.3126621]
[1752815917885,1.2917504,120540.0,120530.0,0.3126621]
[1752815920587,0.9309504,120540.0,120530.0,0.3126621]
[1752815920885,1.2917504,120540.0,120530.0,0.3126621]
[1752815921086,0.6502304,120540.0,120530.0,0.3126621]
[1752815921283,1.2916304,120540.0,120530.0,0.3126621]
[1752815924786,1.2916304,120540.0,120530.0,0.2082321]
[1752815924991,1.2914704,120540.0,120530.0,0.001]
[1752815925190,0.1657939,120530.0,120520.0,0.01073]
[1752815925484,0.81726502,120530.0,120520.0,0.01073]
[1752815925689,1.58235309,120530.0,120520.0,0.01073]
[1752815925889,1.29168197,120530.0,120520.0,0.01073]
[1752815926090,0.65044197,120530.0,120520.0,0.1765377]
[1752815926284,0.65144197,120530.0,120520.0,0.2726277]
[1752815926489,1.29260197,120530.0,120520.0,0.3334777]
[1752815926690,0.65144197,120530.0,120520.0,0.62414882]
[1752815926891,1.29260197,120530.0,120520.0,0.3334777]
[1752815927095,1.29260197,120530.0,120520.0,0.62414882]
[1752815927592,1.29264197,120530.0,120520.0,0.62414882]
[1752815928192,1.29464197,120530.0,120520.0,0.3334777]
[1752815928688,0.48764807,120530.0,120520.0,0.62414882]
[1752815928890,1.12876807,120530.0,120520.0,0.62414882]
[1752815929296,1.29456197,120530.0,120520.0,0.62414882]
[1752815929499,0.65344197,120530.0,120520.0,0.62414882]
[1752815929701,1.29460197,120530.0,120520.0,0.62414882]
[1752815929900,1.29460197,120530.0,120520.0,0.3334777]
[1752815930097,1.29360197,120530.0,120520.0,0.62414882]
[1752815931402,0.93080197,120530.0,120520.0,0.62414882]